[Event "Early-Titled-Tuesday-Blitz-February-13-2024"]
[Site "Chess.com"]
[Date "2024.02.13"]
[Round "11"]
[White "ural58"]
[Black "Rurep26"]
[Result "1-0"]
[WhiteElo "2528"]
[BlackElo "2701"]
[TimeControl "180+1"]
[EndTime "10:08:23 PST"]
[Termination "ural58 won by resignation"]

1. e4 {[%clk 0:03:00.9]} 1... c6 {[%clk 0:02:58.8]} 2. Nf3 {[%clk 0:03:00.1]}
2... d5 {[%clk 0:02:59.7]} 3. Nc3 {[%clk 0:03:00.1]} 3... dxe4 {[%clk
0:02:58.4]} 4. Nxe4 {[%clk 0:03:00.1]} 4... Nf6 {[%clk 0:02:59.3]} 5. Qe2 {[%clk
0:03:00.3]} 5... Nxe4 {[%clk 0:02:58.1]} 6. Qxe4 {[%clk 0:03:00.3]} 6... Nd7
{[%clk 0:02:59]} 7. d4 {[%clk 0:02:58.3]} 7... Nf6 {[%clk 0:02:58.8]} 8. Qd3
{[%clk 0:02:57.9]} 8... Bg4 {[%clk 0:02:58.5]} 9. Ne5 {[%clk 0:02:54.7]} 9...
Bh5 {[%clk 0:02:58.8]} 10. Bd2 {[%clk 0:02:51.3]} 10... e6 {[%clk 0:02:58.3]}
11. f3 {[%clk 0:02:34.3]} 11... Bd6 {[%clk 0:02:58.3]} 12. O-O-O {[%clk
0:02:32.7]} 12... Qc7 {[%clk 0:02:54]} 13. Nc4 {[%clk 0:02:30.4]} 13... Bf4
{[%clk 0:02:53]} 14. Qa3 {[%clk 0:02:26.6]} 14... Bxd2+ {[%clk 0:02:48.1]} 15.
Rxd2 {[%clk 0:02:26]} 15... Qe7 {[%clk 0:02:44.3]} 16. Nd6+ {[%clk 0:02:12.5]}
16... Kf8 {[%clk 0:02:42.8]} 17. Nxb7 {[%clk 0:02:08.2]} 17... Qxa3 {[%clk
0:02:40.5]} 18. bxa3 {[%clk 0:02:08.8]} 18... Ke7 {[%clk 0:02:40.9]} 19. Na5
{[%clk 0:02:07.8]} 19... Rac8 {[%clk 0:02:38.7]} 20. Ba6 {[%clk 0:02:06.2]}
20... Rc7 {[%clk 0:02:38.5]} 21. Re1 {[%clk 0:02:01.7]} 21... Rb8 {[%clk
0:02:36]} 22. Re5 {[%clk 0:02:00.8]} 22... Bg6 {[%clk 0:02:35.2]} 23. Rc5 {[%clk
0:02:00.1]} 23... Kd7 {[%clk 0:02:34.3]} 24. Bd3 {[%clk 0:01:36.6]} 24... Nd5
{[%clk 0:02:32.2]} 25. Bxg6 {[%clk 0:01:35.8]} 25... hxg6 {[%clk 0:02:33.1]} 26.
g3 {[%clk 0:01:30.3]} 26... Rb5 {[%clk 0:02:27]} 27. Nb3 {[%clk 0:01:28.3]}
27... Rxc5 {[%clk 0:02:24.9]} 28. Nxc5+ {[%clk 0:01:28.3]} 28... Ke7 {[%clk
0:02:25.8]} 29. c4 {[%clk 0:01:27]} 29... Nb6 {[%clk 0:02:25.5]} 30. Rc2 {[%clk
0:01:24.9]} 30... Rc8 {[%clk 0:02:26.4]} 31. a4 {[%clk 0:01:23.2]} 31... Rd8
{[%clk 0:02:26.1]} 32. a5 {[%clk 0:01:23.3]} 32... Nc8 {[%clk 0:02:25]} 33. Nb3
{[%clk 0:00:59.7]} 33... Nd6 {[%clk 0:02:25.3]} 34. Kb2 {[%clk 0:00:57.6]} 34...
Nf5 {[%clk 0:02:18.8]} 35. Kc3 {[%clk 0:00:56.6]} 35... g5 {[%clk 0:02:18.2]}
36. Nc5 {[%clk 0:00:54.1]} 36... Nxd4 {[%clk 0:02:12.5]} 37. Rb2 {[%clk
0:00:49.3]} 37... Nxf3 {[%clk 0:02:07.1]} 38. Rb7+ {[%clk 0:00:47.5]} 38... Kf6
{[%clk 0:02:07.2]} 39. Nd7+ {[%clk 0:00:47]} 39... Kf5 {[%clk 0:02:00.4]} 40.
Rxa7 {[%clk 0:00:45.5]} 40... Nxh2 {[%clk 0:01:59.6]} 41. a6 {[%clk 0:00:45.7]}
41... Nf1 {[%clk 0:01:58.7]} 42. g4+ {[%clk 0:00:41]} 42... Kxg4 {[%clk
0:01:43.8]} 43. Ne5+ {[%clk 0:00:40.7]} 43... Kf4 {[%clk 0:01:44.7]} 44. Nxc6
{[%clk 0:00:40.2]} 44... Rd1 {[%clk 0:01:45.6]} 45. Rxf7+ {[%clk 0:00:39.7]}
45... Ke3 {[%clk 0:01:45.4]} 46. a7 {[%clk 0:00:40.4]} 46... Rc1+ {[%clk
0:01:44]} 47. Kb2 {[%clk 0:00:40]} 47... Rxc4 {[%clk 0:01:44]} 48. a8=Q {[%clk
0:00:39.5]} 1-0

[Event "Early-Titled-Tuesday-Blitz-February-13-2024"]
[Site "Chess.com"]
[Date "2024.02.13"]
[Round "11"]
[White "KorolDimitriy75"]
[Black "xakevicius91"]
[Result "0-1"]
[WhiteElo "2421"]
[BlackElo "2542"]
[TimeControl "180+1"]
[EndTime "10:08:25 PST"]
[Termination "xakevicius91 won by resignation"]

1. d4 {[%clk 0:03:00.9]} 1... Nf6 {[%clk 0:02:58.5]} 2. c4 {[%clk 0:03:01.5]}
2... g6 {[%clk 0:02:58.9]} 3. Nc3 {[%clk 0:03:01.8]} 3... Bg7 {[%clk 0:02:58]}
4. e4 {[%clk 0:03:02.1]} 4... d6 {[%clk 0:02:58.5]} 5. Nf3 {[%clk 0:03:03]} 5...
O-O {[%clk 0:02:58.5]} 6. Be2 {[%clk 0:03:03.9]} 6... Bg4 {[%clk 0:02:57.8]} 7.
Be3 {[%clk 0:03:03.7]} 7... Nc6 {[%clk 0:02:57.7]} 8. Rc1 {[%clk 0:03:02.6]}
8... Bxf3 {[%clk 0:02:57.2]} 9. Bxf3 {[%clk 0:03:03.5]} 9... e5 {[%clk
0:02:57.3]} 10. d5 {[%clk 0:03:03.4]} 10... Nd4 {[%clk 0:02:57.9]} 11. Bxd4
{[%clk 0:03:02.8]} 11... exd4 {[%clk 0:02:58.8]} 12. Nb5 {[%clk 0:03:00.5]}
12... Re8 {[%clk 0:02:57]} 13. O-O {[%clk 0:02:57.3]} 13... Nxe4 {[%clk
0:02:56.5]} 14. Nxd4 {[%clk 0:02:55.3]} 14... a5 {[%clk 0:02:39.6]} 15. Rc2
{[%clk 0:02:43.8]} 15... Nc5 {[%clk 0:02:37.9]} 16. Nb5 {[%clk 0:02:37.3]} 16...
Rc8 {[%clk 0:02:20.1]} 17. b3 {[%clk 0:02:25.4]} 17... Qg5 {[%clk 0:02:09.6]}
18. Re1 {[%clk 0:02:04.9]} 18... Rxe1+ {[%clk 0:02:03.3]} 19. Qxe1 {[%clk
0:02:05.8]} 19... Be5 {[%clk 0:01:59.4]} 20. g3 {[%clk 0:01:52.7]} 20... f5
{[%clk 0:01:57.7]} 21. Bg2 {[%clk 0:01:43.9]} 21... f4 {[%clk 0:01:58.1]} 22.
Bh3 {[%clk 0:01:30.4]} 22... fxg3 {[%clk 0:01:48.3]} 23. Bxc8 {[%clk 0:00:39.5]}
23... gxf2+ {[%clk 0:01:47.2]} 24. Kxf2 {[%clk 0:00:34]} 24... Nd3+ {[%clk
0:01:46.8]} 25. Ke2 {[%clk 0:00:34]} 25... Nxe1 {[%clk 0:01:47.2]} 26. Kxe1
{[%clk 0:00:34.4]} 26... Qg1+ {[%clk 0:01:46.8]} 27. Kd2 {[%clk 0:00:34]} 27...
Qxh2+ {[%clk 0:01:45.2]} 28. Kd3 {[%clk 0:00:34.1]} 28... Qg3+ {[%clk
0:01:45.1]} 29. Kd2 {[%clk 0:00:32.4]} 29... Qf2+ {[%clk 0:01:44.5]} 30. Kd3
{[%clk 0:00:32.5]} 30... Qf3+ {[%clk 0:01:39.2]} 31. Kd2 {[%clk 0:00:32.6]}
31... Bf4+ {[%clk 0:01:39.7]} 32. Ke1 {[%clk 0:00:29.3]} 32... Qh1+ {[%clk
0:01:37.1]} 33. Ke2 {[%clk 0:00:29.4]} 33... Qg2+ {[%clk 0:01:34.1]} 34. Kd3
{[%clk 0:00:24.6]} 34... Qf3+ {[%clk 0:01:34.3]} 0-1

[Event "Early-Titled-Tuesday-Blitz-February-13-2024"]
[Site "Chess.com"]
[Date "2024.02.13"]
[Round "11"]
[White "Crazy_girl99"]
[Black "mr_gustavo"]
[Result "0-1"]
[WhiteElo "2594"]
[BlackElo "2739"]
[TimeControl "180+1"]
[EndTime "10:08:27 PST"]
[Termination "mr_gustavo won by resignation"]

1. e4 {[%clk 0:03:00.9]} 1... c6 {[%clk 0:02:59.1]} 2. d4 {[%clk 0:03:00.7]}
2... d5 {[%clk 0:03:00]} 3. e5 {[%clk 0:03:01.1]} 3... c5 {[%clk 0:03:00.1]} 4.
dxc5 {[%clk 0:02:59.8]} 4... e6 {[%clk 0:02:59.4]} 5. Be3 {[%clk 0:02:58.5]}
5... Nd7 {[%clk 0:02:56.7]} 6. Nf3 {[%clk 0:02:54.6]} 6... Bxc5 {[%clk
0:02:56.1]} 7. Bxc5 {[%clk 0:02:53.3]} 7... Nxc5 {[%clk 0:02:57]} 8. Nbd2 {[%clk
0:02:52.7]} 8... Ne7 {[%clk 0:02:55]} 9. Bd3 {[%clk 0:02:47.9]} 9... h6 {[%clk
0:02:49.7]} 10. O-O {[%clk 0:02:48]} 10... O-O {[%clk 0:02:47.4]} 11. Nd4 {[%clk
0:02:46.9]} 11... Nc6 {[%clk 0:02:45.5]} 12. N2f3 {[%clk 0:02:35.5]} 12... Bd7
{[%clk 0:02:37.7]} 13. Rc1 {[%clk 0:02:34.7]} 13... a5 {[%clk 0:02:35.8]} 14.
Re1 {[%clk 0:02:33.6]} 14... a4 {[%clk 0:02:35]} 15. Qd2 {[%clk 0:02:33.3]}
15... Qb6 {[%clk 0:02:28.3]} 16. Nxc6 {[%clk 0:02:05.7]} 16... bxc6 {[%clk
0:02:26.9]} 17. Rb1 {[%clk 0:02:05]} 17... Rfb8 {[%clk 0:02:21]} 18. a3 {[%clk
0:02:00.3]} 18... Bc8 {[%clk 0:02:12.6]} 19. h4 {[%clk 0:01:59.4]} 19... Ba6
{[%clk 0:02:10.9]} 20. Bxa6 {[%clk 0:01:52.9]} 20... Qxa6 {[%clk 0:02:07.3]} 21.
Qf4 {[%clk 0:01:47.2]} 21... Rb7 {[%clk 0:02:04.1]} 22. Nd4 {[%clk 0:01:45.5]}
22... Rab8 {[%clk 0:02:02.2]} 23. Re3 {[%clk 0:01:40.4]} 23... Rxb2 {[%clk
0:01:57.6]} 24. Rxb2 {[%clk 0:01:40.1]} 24... Rxb2 {[%clk 0:01:58.5]} 25. Rf3
{[%clk 0:01:40.6]} 25... Qa7 {[%clk 0:01:47.9]} 26. Nxc6 {[%clk 0:01:38.1]}
26... Qc7 {[%clk 0:01:35.9]} 27. Nd4 {[%clk 0:01:19.1]} 27... Ne4 {[%clk
0:01:22.9]} 28. Nxe6 {[%clk 0:01:09.2]} 28... fxe6 {[%clk 0:01:01.2]} 29. Qf8+
{[%clk 0:01:08.5]} 29... Kh7 {[%clk 0:01:00.5]} 30. Rf7 {[%clk 0:01:08.9]} 30...
Qxe5 {[%clk 0:00:58.7]} 31. f4 {[%clk 0:00:50.9]} 31... Qd4+ {[%clk 0:00:52.1]}
32. Kh2 {[%clk 0:00:51.3]} 32... Rxc2 {[%clk 0:00:52.6]} 33. Qe7 {[%clk
0:00:42.3]} 33... Rxg2+ {[%clk 0:00:51.4]} 34. Kxg2 {[%clk 0:00:40.4]} 34...
Qf2+ {[%clk 0:00:50.8]} 0-1

[Event "Early-Titled-Tuesday-Blitz-February-13-2024"]
[Site "Chess.com"]
[Date "2024.02.13"]
[Round "11"]
[White "JonaszBaum"]
[Black "maciek_92"]
[Result "0-1"]
[WhiteElo "2649"]
[BlackElo "2809"]
[TimeControl "180+1"]
[EndTime "10:08:36 PST"]
[Termination "maciek_92 won by resignation"]

1. d4 {[%clk 0:02:45.5]} 1... f5 {[%clk 0:02:59.5]} 2. g3 {[%clk 0:02:42.7]}
2... Nf6 {[%clk 0:02:59.3]} 3. Bg2 {[%clk 0:02:42]} 3... g6 {[%clk 0:02:59.2]}
4. Nh3 {[%clk 0:02:42.3]} 4... Bg7 {[%clk 0:02:54.8]} 5. Nf4 {[%clk 0:02:42.1]}
5... d6 {[%clk 0:02:55.4]} 6. d5 {[%clk 0:02:40.5]} 6... c6 {[%clk 0:02:53.3]}
7. c4 {[%clk 0:02:39.9]} 7... e5 {[%clk 0:02:45.8]} 8. dxe6 {[%clk 0:02:39.1]}
8... Na6 {[%clk 0:02:46.5]} 9. h4 {[%clk 0:02:26]} 9... Nc5 {[%clk 0:02:42.3]}
10. h5 {[%clk 0:02:25.7]} 10... Nxe6 {[%clk 0:02:37]} 11. h6 {[%clk 0:02:12.1]}
11... Bf8 {[%clk 0:02:35.2]} 12. Nc3 {[%clk 0:02:10.1]} 12... Be7 {[%clk
0:02:34.1]} 13. b3 {[%clk 0:01:52.1]} 13... Nxf4 {[%clk 0:02:33.4]} 14. Bxf4
{[%clk 0:01:50.8]} 14... Be6 {[%clk 0:02:32]} 15. Qd2 {[%clk 0:01:47.9]} 15...
Qa5 {[%clk 0:02:31]} 16. O-O {[%clk 0:01:40.8]} 16... Rd8 {[%clk 0:02:23.6]} 17.
Qe3 {[%clk 0:01:27.6]} 17... Kf7 {[%clk 0:02:22.2]} 18. Rad1 {[%clk 0:01:24.9]}
18... g5 {[%clk 0:02:12.1]} 19. Bxg5 {[%clk 0:01:01.1]} 19... Ng4 {[%clk
0:02:12.1]} 20. Qd2 {[%clk 0:00:58.9]} 20... Bxg5 {[%clk 0:02:06.4]} 21. Qxg5
{[%clk 0:00:59.8]} 21... Qxc3 {[%clk 0:02:06.6]} 22. e4 {[%clk 0:00:49.3]} 22...
Qf6 {[%clk 0:02:00.9]} 23. Qxf6+ {[%clk 0:00:42.9]} 23... Nxf6 {[%clk
0:02:00.6]} 24. exf5 {[%clk 0:00:36.5]} 24... Bxf5 {[%clk 0:02:01.5]} 25. Rd4
{[%clk 0:00:36.1]} 25... Rhe8 {[%clk 0:01:56.7]} 26. Rfd1 {[%clk 0:00:36.3]}
26... Re2 {[%clk 0:01:54.4]} 27. Rf4 {[%clk 0:00:31.8]} 27... Bg6 {[%clk
0:01:43.4]} 28. g4 {[%clk 0:00:31.1]} 28... Ke7 {[%clk 0:01:42.1]} 29. g5 {[%clk
0:00:25.9]} 29... Nd7 {[%clk 0:01:42]} 30. Rfd4 {[%clk 0:00:16.8]} 30... Nc5
{[%clk 0:01:25.8]} 31. f4 {[%clk 0:00:16.9]} 31... Ne6 {[%clk 0:01:24.1]} 32. f5
{[%clk 0:00:09.3]} 32... Bxf5 {[%clk 0:01:21.1]} 33. Rh4 {[%clk 0:00:06.2]}
33... Rg8 {[%clk 0:01:19.4]} 0-1

[Event "Early-Titled-Tuesday-Blitz-February-13-2024"]
[Site "Chess.com"]
[Date "2024.02.13"]
[Round "11"]
[White "Zhigalko_Sergei"]
[Black "tusplingher"]
[Result "1-0"]
[WhiteElo "2924"]
[BlackElo "2486"]
[TimeControl "180+1"]
[EndTime "10:08:36 PST"]
[Termination "Zhigalko_Sergei won by resignation"]

1. g4 {[%clk 0:03:00.9]} 1... d5 {[%clk 0:02:57.7]} 2. Bg2 {[%clk 0:03:00.9]}
2... c6 {[%clk 0:02:54.6]} 3. g5 {[%clk 0:02:57.8]} 3... e5 {[%clk 0:02:53.6]}
4. d4 {[%clk 0:02:48.5]} 4... exd4 {[%clk 0:02:48.2]} 5. Qxd4 {[%clk 0:02:36.7]}
5... Be6 {[%clk 0:02:40.8]} 6. Nf3 {[%clk 0:02:27.4]} 6... Ne7 {[%clk
0:02:39.6]} 7. e4 {[%clk 0:02:18.2]} 7... dxe4 {[%clk 0:02:36.8]} 8. Qxe4 {[%clk
0:02:18.7]} 8... Nf5 {[%clk 0:02:14.2]} 9. O-O {[%clk 0:02:14.9]} 9... Be7
{[%clk 0:02:13.8]} 10. Nc3 {[%clk 0:02:10.8]} 10... O-O {[%clk 0:02:12.9]} 11.
Bf4 {[%clk 0:02:10.9]} 11... Nd7 {[%clk 0:02:08.4]} 12. Rad1 {[%clk 0:02:10.4]}
12... Qc8 {[%clk 0:01:55.9]} 13. Rfe1 {[%clk 0:02:08.3]} 13... Nc5 {[%clk
0:01:49.2]} 14. Qe5 {[%clk 0:02:07.7]} 14... Nd7 {[%clk 0:01:46]} 15. Qe4 {[%clk
0:01:52.3]} 15... Nc5 {[%clk 0:01:45.9]} 16. Qe2 {[%clk 0:01:52.5]} 16... Rd8
{[%clk 0:01:41.2]} 17. h4 {[%clk 0:01:41.8]} 17... Rxd1 {[%clk 0:01:33.8]} 18.
Rxd1 {[%clk 0:01:41.6]} 18... Qe8 {[%clk 0:01:32.1]} 19. h5 {[%clk 0:01:39.8]}
19... Rd8 {[%clk 0:01:28.6]} 20. Re1 {[%clk 0:01:39.9]} 20... Nd4 {[%clk
0:01:22.9]} 21. Nxd4 {[%clk 0:01:38.6]} 21... Rxd4 {[%clk 0:01:22.8]} 22. Qe5
{[%clk 0:01:38.6]} 22... Rd8 {[%clk 0:01:11.7]} 23. h6 {[%clk 0:01:37.4]} 23...
gxh6 {[%clk 0:00:56.5]} 24. gxh6 {[%clk 0:01:37.1]} 24... f6 {[%clk 0:00:56.6]}
25. Qe3 {[%clk 0:01:29.5]} 25... Qg6 {[%clk 0:00:54.5]} 26. b4 {[%clk
0:01:24.5]} 26... Kf7 {[%clk 0:00:12.6]} 27. bxc5 {[%clk 0:01:22]} 27... Qf5
{[%clk 0:00:12.7]} 28. Ne4 {[%clk 0:01:18.6]} 28... Rg8 {[%clk 0:00:11.9]} 29.
Ng3 {[%clk 0:01:18.5]} 29... Qg4 {[%clk 0:00:12.3]} 30. Bf3 {[%clk 0:01:17.5]}
30... Qh3 {[%clk 0:00:11.8]} 31. Bh5+ {[%clk 0:01:16.4]} 31... Kf8 {[%clk
0:00:07.3]} 32. Qxe6 {[%clk 0:01:15.7]} 1-0

[Event "Early-Titled-Tuesday-Blitz-February-13-2024"]
[Site "Chess.com"]
[Date "2024.02.13"]
[Round "11"]
[White "romulocardoso"]
[Black "Kostukov_Alex"]
[Result "1-0"]
[WhiteElo "2361"]
[BlackElo "2247"]
[TimeControl "180+1"]
[EndTime "10:08:43 PST"]
[Termination "romulocardoso won on time"]

1. e4 {[%clk 0:03:00.9]} 1... c5 {[%clk 0:02:59.1]} 2. Nf3 {[%clk 0:03:01.1]}
2... g6 {[%clk 0:02:59.2]} 3. d4 {[%clk 0:03:01.3]} 3... cxd4 {[%clk 0:03:00.1]}
4. Qxd4 {[%clk 0:03:01.8]} 4... Nf6 {[%clk 0:03:00.1]} 5. e5 {[%clk 0:03:02.5]}
5... Nc6 {[%clk 0:03:00.8]} 6. Qa4 {[%clk 0:03:03.1]} 6... Nd5 {[%clk
0:02:59.8]} 7. Qe4 {[%clk 0:03:03.6]} 7... Ndb4 {[%clk 0:03:00.1]} 8. Bb5 {[%clk
0:03:03.9]} 8... Qa5 {[%clk 0:02:57.1]} 9. Nc3 {[%clk 0:03:04.3]} 9... a6 {[%clk
0:02:53.9]} 10. Bc4 {[%clk 0:02:47.5]} 10... d5 {[%clk 0:02:29.7]} 11. exd6
{[%clk 0:02:47.4]} 11... Bf5 {[%clk 0:02:28.6]} 12. Qf4 {[%clk 0:02:31.9]} 12...
Nxc2+ {[%clk 0:02:25.3]} 13. Kd1 {[%clk 0:02:32.3]} 13... Nxa1 {[%clk
0:02:09.3]} 14. g4 {[%clk 0:02:29.1]} 14... e5 {[%clk 0:01:29.7]} 15. d7+ {[%clk
0:02:20]} 15... Kxd7 {[%clk 0:01:14.3]} 16. Qd2+ {[%clk 0:02:19.9]} 16... Bd6
{[%clk 0:00:55.1]} 17. gxf5 {[%clk 0:02:19.6]} 17... gxf5 {[%clk 0:00:55.3]} 18.
Qd5 {[%clk 0:02:00.8]} 18... Qxd5+ {[%clk 0:00:46.3]} 19. Nxd5 {[%clk
0:02:01.7]} 19... Bc5 {[%clk 0:00:27.1]} 20. b4 {[%clk 0:01:52.1]} 20... b5
{[%clk 0:00:23.9]} 21. bxc5 {[%clk 0:01:47.8]} 21... bxc4 {[%clk 0:00:24.2]} 22.
Nb6+ {[%clk 0:01:48.1]} 22... Ke6 {[%clk 0:00:22.7]} 23. Nxa8 {[%clk 0:01:48.3]}
23... Rxa8 {[%clk 0:00:22.5]} 24. Bb2 {[%clk 0:01:48.6]} 24... Rd8+ {[%clk
0:00:19.2]} 25. Kc1 {[%clk 0:01:47.9]} 25... Nd4 {[%clk 0:00:18.2]} 26. Nxd4+
{[%clk 0:01:41.8]} 26... exd4 {[%clk 0:00:19.1]} 27. Bxa1 {[%clk 0:01:41.5]}
27... Kd5 {[%clk 0:00:17.4]} 28. Re1 {[%clk 0:01:40]} 28... Kxc5 {[%clk
0:00:16.8]} 29. Re5+ {[%clk 0:01:39.9]} 29... Rd5 {[%clk 0:00:15.9]} 30. Re7
{[%clk 0:01:40.2]} 30... c3 {[%clk 0:00:15]} 31. Kc2 {[%clk 0:01:39.4]} 31... f6
{[%clk 0:00:11.1]} 32. Rxh7 {[%clk 0:01:38.3]} 32... Re5 {[%clk 0:00:10.9]} 33.
Rc7+ {[%clk 0:01:33.7]} 33... Kd6 {[%clk 0:00:09]} 34. Rc4 {[%clk 0:01:33.3]}
34... Kd5 {[%clk 0:00:08.8]} 35. Kd3 {[%clk 0:01:33.7]} 35... Re1 {[%clk
0:00:08.7]} 36. Rxd4+ {[%clk 0:01:33.6]} 36... Ke5 {[%clk 0:00:07.9]} 37. Bxc3
{[%clk 0:01:33.9]} 37... Rd1+ {[%clk 0:00:03.1]} 38. Ke3 {[%clk 0:01:34.1]}
38... Ke6 {[%clk 0:00:01]} 39. Rxd1 {[%clk 0:01:31.8]} 1-0

[Event "Early-Titled-Tuesday-Blitz-February-13-2024"]
[Site "Chess.com"]
[Date "2024.02.13"]
[Round "11"]
[White "nj123456"]
[Black "DAVIDHDZSTS"]
[Result "1-0"]
[WhiteElo "2275"]
[BlackElo "1922"]
[TimeControl "180+1"]
[EndTime "10:08:43 PST"]
[Termination "nj123456 won by resignation"]

1. e4 {[%clk 0:03:00.9]} 1... c5 {[%clk 0:02:59.3]} 2. c3 {[%clk 0:03:00.6]}
2... e6 {[%clk 0:02:59.6]} 3. d4 {[%clk 0:03:00.6]} 3... cxd4 {[%clk 0:03:00.5]}
4. cxd4 {[%clk 0:03:00.6]} 4... d5 {[%clk 0:03:01.4]} 5. exd5 {[%clk 0:02:59.1]}
5... exd5 {[%clk 0:03:02.3]} 6. Nc3 {[%clk 0:02:58.8]} 6... Nf6 {[%clk
0:03:02.5]} 7. Nf3 {[%clk 0:02:59.2]} 7... Nc6 {[%clk 0:03:02.4]} 8. Bd3 {[%clk
0:02:59.6]} 8... Bd6 {[%clk 0:03:02.3]} 9. O-O {[%clk 0:03:00.1]} 9... O-O
{[%clk 0:03:02.4]} 10. h3 {[%clk 0:02:59.6]} 10... h6 {[%clk 0:03:02.1]} 11. a3
{[%clk 0:02:58.8]} 11... Be6 {[%clk 0:02:56.8]} 12. Re1 {[%clk 0:02:52]} 12...
Qd7 {[%clk 0:02:52.9]} 13. Ne5 {[%clk 0:02:50.9]} 13... Qc7 {[%clk 0:02:48.4]}
14. Nb5 {[%clk 0:02:34.5]} 14... Qb8 {[%clk 0:02:41.9]} 15. Nxd6 {[%clk
0:02:34.5]} 15... Qxd6 {[%clk 0:02:41.5]} 16. Bf4 {[%clk 0:02:25.3]} 16... g5
{[%clk 0:02:20.5]} 17. Bg3 {[%clk 0:02:16.5]} 17... Qe7 {[%clk 0:01:53.2]} 18.
Nxc6 {[%clk 0:02:09.4]} 18... bxc6 {[%clk 0:01:54.1]} 19. Qf3 {[%clk 0:02:09.9]}
19... Nh7 {[%clk 0:01:47.4]} 20. Rac1 {[%clk 0:02:03.3]} 20... Qd7 {[%clk
0:01:22.3]} 21. Qh5 {[%clk 0:01:56.8]} 21... Bf5 {[%clk 0:01:03.9]} 22. Bxf5
{[%clk 0:01:35]} 22... Qxf5 {[%clk 0:01:04.8]} 23. Qxh6 {[%clk 0:01:35.9]} 23...
Qg6 {[%clk 0:00:53.8]} 24. Qxg6+ {[%clk 0:01:34.8]} 24... fxg6 {[%clk
0:00:54.7]} 25. Rxc6 {[%clk 0:01:35.3]} 25... Nf6 {[%clk 0:00:44.1]} 26. Ree6
{[%clk 0:01:33.7]} 26... Ne4 {[%clk 0:00:44.3]} 27. Rxg6+ {[%clk 0:01:32.9]}
27... Kh7 {[%clk 0:00:42.2]} 28. Rh6+ {[%clk 0:01:31.2]} 28... Kg7 {[%clk
0:00:42.4]} 29. Be5+ {[%clk 0:01:31]} 29... Kf7 {[%clk 0:00:40.5]} 30. Rc7+
{[%clk 0:01:29.9]} 30... Ke8 {[%clk 0:00:38.6]} 31. Rhh7 {[%clk 0:01:18.7]}
31... Rxf2 {[%clk 0:00:19.4]} 32. Rce7+ {[%clk 0:01:17]} 32... Kd8 {[%clk
0:00:18]} 33. Bc7+ {[%clk 0:01:17.5]} 33... Kc8 {[%clk 0:00:17.4]} 34. Rh8+
{[%clk 0:01:18]} 34... Kb7 {[%clk 0:00:16.4]} 35. Bg3+ {[%clk 0:01:17.9]} 35...
Kc6 {[%clk 0:00:17.1]} 1-0

[Event "Early-Titled-Tuesday-Blitz-February-13-2024"]
[Site "Chess.com"]
[Date "2024.02.13"]
[Round "11"]
[White "rachidhuilda"]
[Black "campochess"]
[Result "1-0"]
[WhiteElo "2321"]
[BlackElo "2146"]
[TimeControl "180+1"]
[EndTime "10:08:44 PST"]
[Termination "rachidhuilda won by resignation"]

1. d4 {[%clk 0:02:53.7]} 1... Nf6 {[%clk 0:02:58.3]} 2. Bg5 {[%clk 0:02:53.1]}
2... e6 {[%clk 0:02:56.7]} 3. e4 {[%clk 0:02:28.4]} 3... Be7 {[%clk 0:02:54.8]}
4. e5 {[%clk 0:02:20.5]} 4... Nd5 {[%clk 0:02:53.5]} 5. Bxe7 {[%clk 0:02:20.4]}
5... Qxe7 {[%clk 0:02:53.6]} 6. c4 {[%clk 0:02:20.9]} 6... Nb6 {[%clk
0:02:52.9]} 7. Nc3 {[%clk 0:02:21.2]} 7... d6 {[%clk 0:02:47.8]} 8. Nf3 {[%clk
0:02:20.3]} 8... O-O {[%clk 0:02:45.7]} 9. Bd3 {[%clk 0:02:19.5]} 9... Nc6
{[%clk 0:02:44.7]} 10. Qe2 {[%clk 0:02:19]} 10... Bd7 {[%clk 0:02:37.3]} 11. O-O
{[%clk 0:02:15.7]} 11... a6 {[%clk 0:02:36.4]} 12. Qe4 {[%clk 0:02:11.3]} 12...
g6 {[%clk 0:02:34.9]} 13. Qf4 {[%clk 0:02:09.9]} 13... f5 {[%clk 0:02:32.6]} 14.
exd6 {[%clk 0:01:57]} 14... cxd6 {[%clk 0:02:30.5]} 15. Rfe1 {[%clk 0:01:57]}
15... Rad8 {[%clk 0:01:56.1]} 16. a3 {[%clk 0:01:51.8]} 16... Nc8 {[%clk
0:01:53.7]} 17. d5 {[%clk 0:01:46.4]} 17... Na5 {[%clk 0:01:21.8]} 18. dxe6
{[%clk 0:01:45.7]} 18... Bc6 {[%clk 0:01:12]} 19. Nd5 {[%clk 0:01:45.8]} 19...
Qg7 {[%clk 0:01:10.7]} 20. e7 {[%clk 0:01:39]} 20... Nxe7 {[%clk 0:01:05.2]} 21.
Rxe7 {[%clk 0:01:19.1]} 21... Qxb2 {[%clk 0:01:03]} 22. Rae1 {[%clk 0:01:19.4]}
22... Bxd5 {[%clk 0:01:02.2]} 23. cxd5 {[%clk 0:01:15.8]} 23... Qc3 {[%clk
0:00:30.3]} 24. Qh6 {[%clk 0:00:55.1]} 24... Rf7 {[%clk 0:00:20.6]} 25. Rxf7
{[%clk 0:00:54]} 25... Kxf7 {[%clk 0:00:19]} 26. Ng5+ {[%clk 0:00:44.1]} 1-0